Workbook

Sheet Team Performance
A1: Team | B1: Product | C1: Region | D1: Team Members | E1: Sale Date | F1: Login Hours | G1: Total Talk Time | H1: Total Hold Time | I1: Sales | J1: Sales Per Hour | K1: Revenue | L1: Revenue Per Hour | M1: Calls | N1: Excellent | O1: Good | P1: Fair | Q1: Poor | R1: Total | S1: CSAT% (Customer Satisfaction) | T1: TTT/Hrs
A2: Team B | B2: Product 1 | C2: Florida | D2: Rowan | E2: 2014-06-01 | F2: 8.3 | G2: 7.3 | H2: 0.2 | I2: 25 | J2: 3.012048193 | K2: 850 | L2: 102.4096386 | M2: 348 | N2: 20 | O2: 38 | P2: 30 | Q2: 10 | R2: =SUM(M2:Q2) -> 446 | S2: =SUM(N2:O2)/R2 -> 0.130044843 | T2: =G2/F2 -> 0.8795180723
A3: Team B | B3: Product 2 | C3: California | D3: Inez | E3: 2014-06-01 | F3: 7.9 | G3: 6.9 | H3: 0.7 | I3: 25 | J3: 3.164556962 | K3: 850 | L3: 107.5949367 | M3: 330 | N3: 24 | O3: 32 | P3: 30 | Q3: 10 | R3: =SUM(M3:Q3) -> 426 | S3: =SUM(N3:O3)/R3 -> 0.1314553991 | T3: =G3/F3 -> 0.8734177215
A4: Team E | B4: Product 2 | C4: California | D4: Mercedes | E4: 2014-06-01 | F4: 7.3 | G4: 6.3 | H4: 0.7 | I4: 25 | J4: 3.424657534 | K4: 850 | L4: 116.4383562 | M4: 338 | N4: 24 | O4: 34 | P4: 33 | Q4: 12 | R4: 441 | S4: 0.1315192744 | T4: 0.8630136986
A5: Team E | B5: Product 2 | C5: Hawaii | D5: Zia | E5: 2014-06-01 | F5: 7.5 | G5: 6.5 | H5: 0.6 | I5: 25 | J5: 3.333333333 | K5: 850 | L5: 113.3333333 | M5: 353 | N5: 22 | O5: 31 | P5: 37 | Q5: 13 | R5: 456 | S5: 0.1162280702 | T5: 0.8666666667
A6: Team F | B6: Product 2 | C6: Connecticut | D6: Stacy | E6: 2014-06-01 | F6: 7.9 | G6: 6.9 | H6: 0.8 | I6: 25 | J6: 3.164556962 | K6: 850 | L6: 107.5949367 | M6: 383 | N6: 30 | O6: 30 | P6: 36 | Q6: 10 | R6: 489 | S6: 0.1226993865 | T6: 0.8734177215
A7: Team G | B7: Product 2 | C7: Connecticut | D7: Rae | E7: 2014-06-01 | F7: 8 | G7: 7 | H7: 0.8 | I7: 25 | J7: 3.125 | K7: 850 | L7: 106.25 | M7: 373 | N7: 28 | O7: 31 | P7: 40 | Q7: 10 | R7: 482 | S7: 0.122406639 | T7: 0.875
A8: Team I | B8: Product 1 | C8: Alabama | D8: Serina | E8: 2014-06-01 | F8: 8 | G8: 7 | H8: 0.5 | I8: 25 | J8: 3.125 | K8: 850 | L8: 106.25 | M8: 333 | N8: 29 | O8: 34 | P8: 35 | Q8: 12 | R8: 443 | S8: 0.1422121896 | T8: 0.875
A9: Team A | B9: Product 2 | C9: Hawaii | D9: Tashya | E9: 2014-06-01 | F9: 7.9 | G9: 6.9 | H9: 0.6 | I9: 24 | J9: 3.037974684 | K9: 816 | L9: 103.2911392 | M9: 379 | N9: 23 | O9: 37 | P9: 33 | Q9: 11 | R9: 483 | S9: 0.1242236025 | T9: 0.8734177215
A10: Team A | B10: Product 2 | C10: Connecticut | D10: Farrah | E10: 2014-06-01 | F10: 8 | G10: 7 | H10: 0.8 | I10: 24 | J10: 3 | K10: 816 | L10: 102 | M10: 321 | N10: 27 | O10: 32 | P10: 40 | Q10: 14 | R10: 434 | S10: 0.1359447005 | T10: 0.875
A11: Team B | B11: Product 1 | C11: Alabama | D11: Xantha | E11: 2014-06-01 | F11: 7.9 | G11: 6.9 | H11: 0.5 | I11: 24 | J11: 3.037974684 | K11: 816 | L11: 103.2911392 | M11: 335 | N11: 28 | O11: 31 | P11: 33 | Q11: 15 | R11: 442 | S11: 0.1334841629 | T11: 0.8734177215
A12: Team B | B12: Product 2 | C12: Connecticut | D12: Keelie | E12: 2014-06-01 | F12: 7.5 | G12: 6.5 | H12: 0.8 | I12: 24 | J12: 3.2 | K12: 816 | L12: 108.8 | M12: 365 | N12: 29 | O12: 34 | P12: 36 | Q12: 14 | R12: 478 | S12: 0.1317991632 | T12: 0.8666666667
A13: Team C | B13: Product 1 | C13: Florida | D13: Olympia | E13: 2014-06-01 | F13: 7.5 | G13: 6.5 | H13: 0.2 | I13: 24 | J13: 3.2 | K13: 816 | L13: 108.8 | M13: 379 | N13: 20 | O13: 36 | P13: 31 | Q13: 14 | R13: 480 | S13: 0.1166666667 | T13: 0.8666666667
A14: Team D | B14: Product 1 | C14: Colorado | D14: Ariana | E14: 2014-06-01 | F14: 8.3 | G14: 7.3 | H14: 0.3 | I14: 24 | J14: 2.891566265 | K14: 816 | L14: 98.31325301 | M14: 369 | N14: 21 | O14: 40 | P14: 34 | Q14: 15 | R14: 479 | S14: 0.127348643 | T14: 0.8795180723
A15: Team D | B15: Product 2 | C15: Connecticut | D15: Kendall | E15: 2014-06-01 | F15: 7.3 | G15: 6.3 | H15: 0.8 | I15: 24 | J15: 3.287671233 | K15: 816 | L15: 111.7808219 | M15: 338 | N15: 28 | O15: 35 | P15: 39 | Q15: 15 | R15: 455 | S15: 0.1384615385 | T15: 0.8630136986
A16: Team E | B16: Product 1 | C16: Alabama | D16: Miriam | E16: 2014-06-01 | F16: 8 | G16: 7 | H16: 0.5 | I16: 24 | J16: 3 | K16: 816 | L16: 102 | M16: 339 | N16: 30 | O16: 40 | P16: 30 | Q16: 11 | R16: 450 | S16: 0.1555555556 | T16: 0.875
A17: Team H | B17: Product 2 | C17: Hawaii | D17: Xerxes | E17: 2014-06-01 | F17: 7.3 | G17: 6.3 | H17: 0.6 | I17: 24 | J17: 3.287671233 | K17: 816 | L17: 111.7808219 | M17: 303 | N17: 29 | O17: 38 | P17: 32 | Q17: 13 | R17: 415 | S17: 0.1614457831 | T17: 0.8630136986
A18: Team I | B18: Product 1 | C18: Alabama | D18: Juliet | E18: 2014-06-01 | F18: 8.3 | G18: 7.3 | H18: 0.5 | I18: 24 | J18: 2.891566265 | K18: 816 | L18: 98.31325301 | M18: 327 | N18: 20 | O18: 34 | P18: 32 | Q18: 10 | R18: 423 | S18: 0.1276595745 | T18: 0.8795180723
A19: Team J | B19: Product 1 | C19: Colorado | D19: Fleur | E19: 2014-06-01 | F19: 7.3 | G19: 6.3 | H19: 0.3 | I19: 24 | J19: 3.287671233 | K19: 816 | L19: 111.7808219 | M19: 329 | N19: 26 | O19: 36 | P19: 39 | Q19: 10 | R19: 440 | S19: 0.1409090909 | T19: 0.8630136986
A20: Team A | B20: Product 1 | C20: Florida | D20: Libby | E20: 2014-06-01 | F20: 7.3 | G20: 6.3 | H20: 0.2 | I20: 23 | J20: 3.150684932 | K20: 782 | L20: 107.1232877 | M20: 367 | N20: 27 | O20: 37 | P20: 36 | Q20: 12 | R20: 479 | S20: 0.133611691 | T20: 0.8630136986
A21: Team B | B21: Product 1 | C21: Colorado | D21: Iona | E21: 2014-06-01 | F21: 7 | G21: 6 | H21: 0.3 | I21: 23 | J21: 3.285714286 | K21: 782 | L21: 111.7142857 | M21: 369 | N21: 21 | O21: 40 | P21: 34 | Q21: 10 | R21: 474 | S21: 0.1286919831 | T21: 0.8571428571
A22: Team C | B22: Product 2 | C22: Connecticut | D22: Renee | E22: 2014-06-01 | F22: 7 | G22: 6 | H22: 0.8 | I22: 23 | J22: 3.285714286 | K22: 782 | L22: 111.7142857 | M22: 397 | N22: 23 | O22: 32 | P22: 33 | Q22: 13 | R22: 498 | S22: 0.1104417671 | T22: 0.8571428571
A23: Team E | B23: Product 1 | C23: Alabama | D23: Nevada | E23: 2014-06-01 | F23: 8.3 | G23: 7.3 | H23: 0.5 | I23: 23 | J23: 2.771084337 | K23: 782 | L23: 94.21686747 | M23: 320 | N23: 23 | O23: 30 | P23: 39 | Q23: 12 | R23: 424 | S23: 0.125 | T23: 0.8795180723
A24: Team E | B24: Product 1 | C24: Colorado | D24: Courtney | E24: 2014-06-01 | F24: 7.9 | G24: 6.9 | H24: 0.3 | I24: 23 | J24: 2.911392405 | K24: 782 | L24: 98.98734177 | M24: 371 | N24: 29 | O24: 30 | P24: 38 | Q24: 12 | R24: 480 | S24: 0.1229166667 | T24: 0.8734177215
A25: Team E | B25: Product 1 | C25: Florida | D25: Madeline | E25: 2014-06-01 | F25: 7 | G25: 6 | H25: 0.2 | I25: 23 | J25: 3.285714286 | K25: 782 | L25: 111.7142857 | M25: 368 | N25: 30 | O25: 40 | P25: 38 | Q25: 15 | R25: 491 | S25: 0.1425661914 | T25: 0.8571428571
A26: Team F | B26: Product 2 | C26: California | D26: Riley | E26: 2014-06-01 | F26: 8 | G26: 7 | H26: 0.7 | I26: 23 | J26: 2.875 | K26: 782 | L26: 97.75 | M26: 334 | N26: 30 | O26: 38 | P26: 30 | Q26: 11 | R26: 443 | S26: 0.1534988713 | T26: 0.875
A27: Team H | B27: Product 1 | C27: Alabama | D27: Carolyn | E27: 2014-06-01 | F27: 7.9 | G27: 6.9 | H27: 0.5 | I27: 23 | J27: 2.911392405 | K27: 782 | L27: 98.98734177 | M27: 382 | N27: 23 | O27: 33 | P27: 33 | Q27: 11 | R27: 482 | S27: 0.1161825726 | T27: 0.8734177215
A28: Team H | B28: Product 1 | C28: Florida | D28: Nomlanga | E28: 2014-06-01 | F28: 8 | G28: 7 | H28: 0.2 | I28: 23 | J28: 2.875 | K28: 782 | L28: 97.75 | M28: 368 | N28: 26 | O28: 31 | P28: 38 | Q28: 11 | R28: 474 | S28: 0.1202531646 | T28: 0.875
A29: Team I | B29: Product 1 | C29: Florida | D29: Melodie | E29: 2014-06-01 | F29: 7 | G29: 6 | H29: 0.2 | I29: 23 | J29: 3.285714286 | K29: 782 | L29: 111.7142857 | M29: 319 | N29: 27 | O29: 38 | P29: 40 | Q29: 13 | R29: 437 | S29: 0.1487414188 | T29: 0.8571428571
A30: Team A | B30: Product 1 | C30: Alabama | D30: Sydnee | E30: 2014-06-01 | F30: 7 | G30: 6 | H30: 0.5 | I30: 22 | J30: 3.142857143 | K30: 748 | L30: 106.8571429 | M30: 358 | N30: 24 | O30: 40 | P30: 32 | Q30: 15 | R30: 469 | S30: 0.1364605544 | T30: 0.8571428571
A31: Team C | B31: Product 1 | C31: Colorado | D31: Jana | E31: 2014-06-01 | F31: 7.9 | G31: 6.9 | H31: 0.3 | I31: 22 | J31: 2.784810127 | K31: 748 | L31: 94.6835443 | M31: 341 | N31: 22 | O31: 30 | P31: 31 | Q31: 14 | R31: 438 | S31: 0.1187214612 | T31: 0.8734177215
A32: Team E | B32: Product 1 | C32: Florida | D32: Lacy | E32: 2014-06-01 | F32: 7.9 | G32: 6.9 | H32: 0.2 | I32: 22 | J32: 2.784810127 | K32: 748 | L32: 94.6835443 | M32: 377 | N32: 27 | O32: 30 | P32: 34 | Q32: 10 | R32: 478 | S32: 0.1192468619 | T32: 0.8734177215
A33: Team F | B33: Product 1 | C33: Alabama | D33: Shelby | E33: 2014-06-01 | F33: 7.5 | G33: 6.5 | H33: 0.5 | I33: 22 | J33: 2.933333333 | K33: 748 | L33: 99.73333333 | M33: 389 | N33: 20 | O33: 39 | P33: 39 | Q33: 13 | R33: 500 | S33: 0.118 | T33: 0.8666666667
A34: Team G | B34: Product 2 | C34: California | D34: Pamela | E34: 2014-06-01 | F34: 7.5 | G34: 6.5 | H34: 0.7 | I34: 22 | J34: 2.933333333 | K34: 748 | L34: 99.73333333 | M34: 326 | N34: 29 | O34: 33 | P34: 38 | Q34: 13 | R34: 439 | S34: 0.1412300683 | T34: 0.8666666667
A35: Team G | B35: Product 1 | C35: Alabama | D35: Dana | E35: 2014-06-01 | F35: 7.6 | G35: 6.6 | H35: 0.5 | I35: 22 | J35: 2.894736842 | K35: 748 | L35: 98.42105263 | M35: 396 | N35: 27 | O35: 30 | P35: 38 | Q35: 15 | R35: =SUM(M35:Q35) -> 506 | S35: =SUM(N35:O35)/R35 -> 0.1126482213 | T35: 0.8684210526
A36: Team J | B36: Product 2 | C36: California | D36: Jena | E36: 2014-06-01 | F36: 8.3 | G36: 7.3 | H36: 0.7 | I36: 22 | J36: 2.65060241 | K36: 748 | L36: 90.12048193 | M36: 386 | N36: 20 | O36: 39 | P36: 38 | Q36: 12 | R36: 495 | S36: 0.1191919192 | T36: 0.8795180723
A37: Team J | B37: Product 2 | C37: Connecticut | D37: Illiana | E37: 2014-06-01 | F37: 7.9 | G37: 6.9 | H37: 0.8 | I37: 22 | J37: 2.784810127 | K37: 748 | L37: 94.6835443 | M37: 332 | N37: 22 | O37: 39 | P37: 32 | Q37: 11 | R37: 436 | S37: 0.1399082569 | T37: 0.8734177215
A38: Team A | B38: Product 2 | C38: Connecticut | D38: Nola | E38: 2014-06-01 | F38: 8.3 | G38: 7.3 | H38: 0.8 | I38: 21 | J38: 2.530120482 | K38: 714 | L38: 86.02409639 | M38: 327 | N38: 25 | O38: 36 | P38: 33 | Q38: 12 | R38: 433 | S38: 0.1408775982 | T38: 0.8795180723
A39: Team B | B39: Product 2 | C39: Hawaii | D39: Quyn | E39: 2014-06-01 | F39: 7.3 | G39: 6.3 | H39: 0.6 | I39: 21 | J39: 2.876712329 | K39: 714 | L39: 97.80821918 | M39: 381 | N39: 23 | O39: 34 | P39: 36 | Q39: 11 | R39: 485 | S39: 0.1175257732 | T39: 0.8630136986
A40: Team C | B40: Product 2 | C40: Hawaii | D40: Camille | E40: 2014-06-01 | F40: 8 | G40: 7 | H40: 0.6 | I40: 21 | J40: 2.625 | K40: 714 | L40: 89.25 | M40: 348 | N40: 22 | O40: 30 | P40: 37 | Q40: 14 | R40: 451 | S40: 0.1152993348 | T40: 0.875
A41: Team G | B41: Product 1 | C41: Alabama | D41: Katelyn | E41: 2014-06-01 | F41: 7 | G41: 6 | H41: 0.5 | I41: 21 | J41: 3 | K41: 714 | L41: 102 | M41: 322 | N41: 24 | O41: 30 | P41: 32 | Q41: 14 | R41: 422 | S41: 0.1279620853 | T41: 0.8571428571
A42: Team G | B42: Product 1 | C42: Colorado | D42: Rhoda | E42: 2014-06-01 | F42: 8 | G42: 7 | H42: 0.3 | I42: 21 | J42: 2.625 | K42: 714 | L42: 89.25 | M42: 339 | N42: 25 | O42: 32 | P42: 31 | Q42: 14 | R42: 441 | S42: 0.1292517007 | T42: 0.875
A43: Team H | B43: Product 2 | C43: California | D43: Zenia | E43: 2014-06-01 | F43: 7.6 | G43: 6.6 | H43: 0.7 | I43: 21 | J43: 2.763157895 | K43: 714 | L43: 93.94736842 | M43: 316 | N43: 28 | O43: 36 | P43: 35 | Q43: 11 | R43: 426 | S43: 0.1502347418 | T43: 0.8684210526
A44: Team H | B44: Product 2 | C44: Connecticut | D44: Ashely | E44: 2014-06-01 | F44: 7.5 | G44: 6.5 | H44: 0.8 | I44: 21 | J44: 2.8 | K44: 714 | L44: 95.2 | M44: 391 | N44: 27 | O44: 31 | P44: 35 | Q44: 13 | R44: 497 | S44: 0.1167002012 | T44: 0.8666666667
A45: Team I | B45: Product 2 | C45: Hawaii | D45: Yolanda | E45: 2014-06-01 | F45: 7.5 | G45: 6.5 | H45: 0.6 | I45: 21 | J45: 2.8 | K45: 714 | L45: 95.2 | M45: 329 | N45: 24 | O45: 32 | P45: 33 | Q45: 14 | R45: 432 | S45: 0.1296296296 | T45: 0.8666666667
A46: Team J | B46: Product 1 | C46: Colorado | D46: Alec | E46: 2014-06-01 | F46: 8.3 | G46: 7.3 | H46: 0.3 | I46: 21 | J46: 2.530120482 | K46: 714 | L46: 86.02409639 | M46: 300 | N46: 23 | O46: 39 | P46: 34 | Q46: 14 | R46: 410 | S46: 0.1512195122 | T46: 0.8795180723
A47: Team A | B47: Product 1 | C47: Colorado | D47: Darryl | E47: 2014-06-01 | F47: 7.5 | G47: 6.5 | H47: 0.3 | I47: 20 | J47: 2.666666667 | K47: 680 | L47: 90.66666667 | M47: 394 | N47: 30 | O47: 38 | P47: 35 | Q47: 13 | R47: 510 | S47: 0.1333333333 | T47: 0.8666666667
A48: Team D | B48: Product 2 | C48: California | D48: Daria | E48: 2014-06-01 | F48: 8.3 | G48: 7.3 | H48: 0.7 | I48: 20 | J48: 2.409638554 | K48: 680 | L48: 81.92771084 | M48: 357 | N48: 24 | O48: 30 | P48: 39 | Q48: 11 | R48: 461 | S48: 0.1171366594 | T48: 0.8795180723
A49: Team F | B49: Product 2 | C49: Hawaii | D49: Shelley | E49: 2014-06-01 | F49: 7 | G49: 6 | H49: 0.6 | I49: 20 | J49: 2.857142857 | K49: 680 | L49: 97.14285714 | M49: 333 | N49: 20 | O49: 31 | P49: 34 | Q49: 13 | R49: 431 | S49: 0.1183294664 | T49: 0.8571428571
A50: Team F | B50: Product 1 | C50: Colorado | D50: Cleo | E50: 2014-06-01 | F50: 8.3 | G50: 7.3 | H50: 0.3 | I50: 20 | J50: 2.409638554 | K50: 680 | L50: 81.92771084 | M50: 307 | N50: 28 | O50: 33 | P50: 32 | Q50: 12 | R50: 412 | S50: 0.1480582524 | T50: 0.8795180723
A51: Team G | B51: Product 2 | C51: Connecticut | D51: Deanna | E51: 2014-06-01 | F51: 8.3 | G51: 7.3 | H51: 0.8 | I51: 20 | J51: 2.409638554 | K51: 680 | L51: 81.92771084 | M51: 390 | N51: 21 | O51: 33 | P51: 35 | Q51: 13 | R51: 492 | S51: 0.1097560976 | T51: 0.8795180723
A52: Team G | B52: Product 2 | C52: California | D52: Regina | E52: 2014-06-01 | F52: 7 | G52: 6 | H52: 0.7 | I52: 20 | J52: 2.857142857 | K52: 680 | L52: 97.14285714 | M52: 372 | N52: 21 | O52: 39 | P52: 35 | Q52: 13 | R52: 480 | S52: 0.125 | T52: 0.8571428571
A53: Team J | B53: Product 1 | C53: Alabama | D53: Luke | E53: 2014-06-01 | F53: 7.5 | G53: 6.5 | H53: 0.5 | I53: 20 | J53: 2.666666667 | K53: 680 | L53: 90.66666667 | M53: 396 | N53: 24 | O53: 39 | P53: 31 | Q53: 10 | R53: 500 | S53: 0.126 | T53: 0.8666666667
A54: Team A | B54: Product 2 | C54: California | D54: Amber | E54: 2014-06-01 | F54: 7.5 | G54: 6.5 | H54: 0.7 | I54: 19 | J54: 2.533333333 | K54: 646 | L54: 86.13333333 | M54: 323 | N54: 20 | O54: 35 | P54: 34 | Q54: 15 | R54: 427 | S54: 0.1288056206 | T54: 0.8666666667
A55: Team A | B55: Product 2 | C55: California | D55: Guinevere | E55: 2014-06-01 | F55: 7 | G55: 6 | H55: 0.7 | I55: 19 | J55: 2.714285714 | K55: 646 | L55: 92.28571429 | M55: 380 | N55: 21 | O55: 32 | P55: 33 | Q55: 11 | R55: 477 | S55: 0.1111111111 | T55: 0.8571428571
A56: Team B | B56: Product 1 | C56: Florida | D56: Brynne | E56: 2014-06-01 | F56: 8 | G56: 7 | H56: 0.2 | I56: 19 | J56: 2.375 | K56: 646 | L56: 80.75 | M56: 370 | N56: 27 | O56: 38 | P56: 33 | Q56: 14 | R56: 482 | S56: 0.1348547718 | T56: 0.875
A57: Team C | B57: Product 1 | C57: Alabama | D57: Shaine | E57: 2014-06-01 | F57: 8.3 | G57: 7.3 | H57: 0.5 | I57: 19 | J57: 2.289156627 | K57: 646 | L57: 77.8313253 | M57: 356 | N57: 28 | O57: 38 | P57: 40 | Q57: 14 | R57: 476 | S57: 0.1386554622 | T57: 0.8795180723
A58: Team C | B58: Product 2 | C58: California | D58: Maris | E58: 2014-06-01 | F58: 7.3 | G58: 6.3 | H58: 0.7 | I58: 19 | J58: 2.602739726 | K58: 646 | L58: 88.49315068 | M58: 354 | N58: 28 | O58: 38 | P58: 36 | Q58: 11 | R58: 467 | S58: 0.1413276231 | T58: 0.8630136986
A59: Team D | B59: Product 1 | C59: Florida | D59: Aileen | E59: 2014-06-01 | F59: 7.6 | G59: 6.6 | H59: 0.2 | I59: 19 | J59: 2.5 | K59: 646 | L59: 85 | M59: 324 | N59: 22 | O59: 36 | P59: 39 | Q59: 14 | R59: 435 | S59: 0.1333333333 | T59: 0.8684210526
A60: Team D | B60: Product 2 | C60: Hawaii | D60: Cheyenne | E60: 2014-06-01 | F60: 7 | G60: 6 | H60: 0.6 | I60: 19 | J60: 2.714285714 | K60: 646 | L60: 92.28571429 | M60: 307 | N60: 24 | O60: 33 | P60: 40 | Q60: 11 | R60: 415 | S60: 0.1373493976 | T60: 0.8571428571
A61: Team F | B61: Product 1 | C61: Colorado | D61: Ivory | E61: 2014-06-01 | F61: 7.3 | G61: 6.3 | H61: 0.3 | I61: 19 | J61: 2.602739726 | K61: 646 | L61: 88.49315068 | M61: 316 | N61: 30 | O61: 40 | P61: 36 | Q61: 15 | R61: 437 | S61: 0.1601830664 | T61: 0.8630136986
A62: Team F | B62: Product 2 | C62: Connecticut | D62: Patricia | E62: 2014-06-01 | F62: 7.3 | G62: 6.3 | H62: 0.8 | I62: 19 | J62: 2.602739726 | K62: 646 | L62: 88.49315068 | M62: 378 | N62: 24 | O62: 35 | P62: 37 | Q62: 13 | R62: 487 | S62: 0.1211498973 | T62: 0.8630136986
A63: Team G | B63: Product 1 | C63: Florida | D63: Mallory | E63: 2014-06-01 | F63: 7.3 | G63: 6.3 | H63: 0.2 | I63: 19 | J63: 2.602739726 | K63: 646 | L63: 88.49315068 | M63: 330 | N63: 30 | O63: 33 | P63: 40 | Q63: 13 | R63: 446 | S63: 0.1412556054 | T63: 0.8630136986
A64: Team H | B64: Product 2 | C64: California | D64: Hilary | E64: 2014-06-01 | F64: 7.9 | G64: 6.9 | H64: 0.7 | I64: 19 | J64: 2.405063291 | K64: 646 | L64: 81.7721519 | M64: 302 | N64: 28 | O64: 32 | P64: 34 | Q64: 15 | R64: 411 | S64: 0.1459854015 | T64: 0.8734177215
A65: Team I | B65: Product 2 | C65: California | D65: Karyn | E65: 2014-06-01 | F65: 7.3 | G65: 6.3 | H65: 0.7 | I65: 19 | J65: 2.602739726 | K65: 646 | L65: 88.49315068 | M65: 317 | N65: 25 | O65: 32 | P65: 38 | Q65: 13 | R65: 425 | S65: 0.1341176471 | T65: 0.8630136986
A66: Team B | B66: Product 2 | C66: California | D66: Winifred | E66: 2014-06-01 | F66: 7.6 | G66: 6.6 | H66: 0.7 | I66: 18 | J66: 2.368421053 | K66: 612 | L66: 80.52631579 | M66: 327 | N66: 23 | O66: 30 | P66: 33 | Q66: 11 | R66: 424 | S66: 0.125 | T66: 0.8684210526
A67: Team B | B67: Product 1 | C67: Alabama | D67: Gay | E67: 2014-06-01 | F67: 7.3 | G67: 6.3 | H67: 0.5 | I67: 18 | J67: 2.465753425 | K67: 612 | L67: 83.83561644 | M67: 316 | N67: 28 | O67: 33 | P67: 34 | Q67: 11 | R67: =SUM(M67:Q67) -> 422 | S67: =SUM(N67:O67)/R67 -> 0.144549763 | T67: =G67/F67 -> 0.8630136986
A68: Team D | B68: Product 1 | C68: Alabama | D68: Dara | E68: 2014-06-01 | F68: 8 | G68: 7 | H68: 0.5 | I68: 18 | J68: 2.25 | K68: 612 | L68: 76.5 | M68: 364 | N68: 21 | O68: 32 | P68: 37 | Q68: 13 | R68: 467 | S68: 0.113490364 | T68: 0.875
A69: Team F | B69: Product 2 | C69: Hawaii | D69: Tatum | E69: 2014-06-01 | F69: 7.6 | G69: 6.6 | H69: 0.6 | I69: 18 | J69: 2.368421053 | K69: 612 | L69: 80.52631579 | M69: 370 | N69: 22 | O69: 33 | P69: 32 | Q69: 15 | R69: 472 | S69: 0.1165254237 | T69: 0.8684210526
A70: Team J | B70: Product 2 | C70: California | D70: Addison | E70: 2014-06-01 | F70: 8 | G70: 7 | H70: 0.7 | I70: 18 | J70: 2.25 | K70: 612 | L70: 76.5 | M70: 350 | N70: 29 | O70: 30 | P70: 32 | Q70: 12 | R70: 453 | S70: 0.1302428256 | T70: 0.875
A71: Team E | B71: Product 2 | C71: Hawaii | D71: Heather | E71: 2014-06-01 | F71: 7.6 | G71: 6.6 | H71: 0.6 | I71: 17 | J71: 2.236842105 | K71: 578 | L71: 76.05263158 | M71: 398 | N71: 28 | O71: 31 | P71: 32 | Q71: 10 | R71: 499 | S71: 0.1182364729 | T71: 0.8684210526
A72: Team E | B72: Product 2 | C72: Connecticut | D72: Amanda | E72: 2014-06-01 | F72: 7.6 | G72: 6.6 | H72: 0.8 | I72: 17 | J72: 2.236842105 | K72: 578 | L72: 76.05263158 | M72: 347 | N72: 20 | O72: 40 | P72: 35 | Q72: 15 | R72: 457 | S72: 0.1312910284 | T72: 0.8684210526
A73: Team H | B73: Product 1 | C73: Colorado | D73: Phyllis | E73: 2014-06-01 | F73: 7 | G73: 6 | H73: 0.3 | I73: 17 | J73: 2.428571429 | K73: 578 | L73: 82.57142857 | M73: 334 | N73: 29 | O73: 31 | P73: 30 | Q73: 11 | R73: 435 | S73: 0.1379310345 | T73: 0.8571428571
A74: Team I | B74: Product 1 | C74: Colorado | D74: Gretchen | E74: 2014-06-01 | F74: 7.6 | G74: 6.6 | H74: 0.3 | I74: 17 | J74: 2.236842105 | K74: 578 | L74: 76.05263158 | M74: 323 | N74: 27 | O74: 38 | P74: 36 | Q74: 11 | R74: 435 | S74: 0.1494252874 | T74: 0.8684210526
A75: Team I | B75: Product 1 | C75: Florida | D75: Galena | E75: 2014-06-01 | F75: 7.5 | G75: 6.5 | H75: 0.2 | I75: 17 | J75: 2.266666667 | K75: 578 | L75: 77.06666667 | M75: 397 | N75: 29 | O75: 31 | P75: 32 | Q75: 10 | R75: 499 | S75: 0.120240481 | T75: 0.8666666667
A76: Team J | B76: Product 2 | C76: Hawaii | D76: Oscar | E76: 2014-06-01 | F76: 7 | G76: 6 | H76: 0.6 | I76: 17 | J76: 2.428571429 | K76: 578 | L76: 82.57142857 | M76: 327 | N76: 21 | O76: 38 | P76: 36 | Q76: 12 | R76: 434 | S76: 0.1359447005 | T76: 0.8571428571
A77: Team J | B77: Product 2 | C77: Hawaii | D77: Abel | E77: 2014-06-01 | F77: 7 | G77: 6 | H77: 0.6 | I77: 17 | J77: 2.428571429 | K77: 578 | L77: 82.57142857 | M77: 327 | N77: 21 | O77: 38 | P77: 36 | Q77: 12 | R77: 434 | S77: 0.1359447005 | T77: 0.8571428571
A78: Team A | B78: Product 1 | C78: Colorado | D78: Constance | E78: 2014-06-01 | F78: 8 | G78: 7 | H78: 0.3 | I78: 16 | J78: 2 | K78: 544 | L78: 68 | M78: 310 | N78: 29 | O78: 32 | P78: 30 | Q78: 11 | R78: 412 | S78: 0.1480582524 | T78: 0.875
A79: Team C | B79: Product 2 | C79: Connecticut | D79: Audra | E79: 2014-06-01 | F79: 7.6 | G79: 6.6 | H79: 0.8 | I79: 16 | J79: 2.105263158 | K79: 544 | L79: 71.57894737 | M79: 376 | N79: 28 | O79: 39 | P79: 33 | Q79: 12 | R79: 488 | S79: 0.137295082 | T79: 0.8684210526
A80: Team C | B80: Product 1 | C80: Florida | D80: Rosalyn | E80: 2014-06-01 | F80: 7 | G80: 6 | H80: 0.2 | I80: 16 | J80: 2.285714286 | K80: 544 | L80: 77.71428571 | M80: 353 | N80: 27 | O80: 37 | P80: 35 | Q80: 12 | R80: 464 | S80: 0.1379310345 | T80: 0.8571428571
A81: Team D | B81: Product 2 | C81: Connecticut | D81: Hermione | E81: 2014-06-01 | F81: 7.9 | G81: 6.9 | H81: 0.8 | I81: 16 | J81: 2.025316456 | K81: 544 | L81: 68.86075949 | M81: 398 | N81: 29 | O81: 31 | P81: 33 | Q81: 11 | R81: 502 | S81: 0.1195219124 | T81: 0.8734177215
A82: Team D | B82: Product 1 | C82: Alabama | D82: Lois | E82: 2014-06-01 | F82: 7.5 | G82: 6.5 | H82: 0.5 | I82: 16 | J82: 2.133333333 | K82: 544 | L82: 72.53333333 | M82: 327 | N82: 28 | O82: 33 | P82: 37 | Q82: 12 | R82: 437 | S82: 0.1395881007 | T82: 0.8666666667
A83: Team D | B83: Product 2 | C83: California | D83: Madeson | E83: 2014-06-01 | F83: 8 | G83: 7 | H83: 0.7 | I83: 16 | J83: 2 | K83: 544 | L83: 68 | M83: 394 | N83: 29 | O83: 37 | P83: 34 | Q83: 11 | R83: 505 | S83: 0.1306930693 | T83: 0.875
A84: Team E | B84: Product 2 | C84: California | D84: Quin | E84: 2014-06-01 | F84: 8.3 | G84: 7.3 | H84: 0.7 | I84: 16 | J84: 1.927710843 | K84: 544 | L84: 65.54216867 | M84: 395 | N84: 23 | O84: 35 | P84: 37 | Q84: 12 | R84: 502 | S84: 0.1155378486 | T84: 0.8795180723
A85: Team F | B85: Product 1 | C85: Florida | D85: Dai | E85: 2014-06-01 | F85: 7.6 | G85: 6.6 | H85: 0.2 | I85: 16 | J85: 2.105263158 | K85: 544 | L85: 71.57894737 | M85: 336 | N85: 23 | O85: 38 | P85: 35 | Q85: 10 | R85: 442 | S85: 0.1380090498 | T85: 0.8684210526
A86: Team G | B86: Product 1 | C86: Colorado | D86: Kirby | E86: 2014-06-01 | F86: 7.5 | G86: 6.5 | H86: 0.3 | I86: 16 | J86: 2.133333333 | K86: 544 | L86: 72.53333333 | M86: 352 | N86: 23 | O86: 39 | P86: 32 | Q86: 14 | R86: 460 | S86: 0.1347826087 | T86: 0.8666666667
A87: Team H | B87: Product 1 | C87: Florida | D87: Frances | E87: 2014-06-01 | F87: 8.3 | G87: 7.3 | H87: 0.2 | I87: 16 | J87: 1.927710843 | K87: 544 | L87: 65.54216867 | M87: 394 | N87: 27 | O87: 37 | P87: 37 | Q87: 10 | R87: 505 | S87: 0.1267326733 | T87: 0.8795180723
A88: Team H | B88: Product 2 | C88: Hawaii | D88: Kirestin | E88: 2014-06-01 | F88: 8.3 | G88: 7.3 | H88: 0.6 | I88: 16 | J88: 1.927710843 | K88: 544 | L88: 65.54216867 | M88: 376 | N88: 25 | O88: 36 | P88: 33 | Q88: 11 | R88: 481 | S88: 0.1268191268 | T88: 0.8795180723
A89: Team I | B89: Product 2 | C89: Connecticut | D89: Giselle | E89: 2014-06-01 | F89: 7 | G89: 6 | H89: 0.8 | I89: 16 | J89: 2.285714286 | K89: 544 | L89: 77.71428571 | M89: 400 | N89: 30 | O89: 32 | P89: 38 | Q89: 15 | R89: 515 | S89: 0.1203883495 | T89: 0.8571428571
A90: Team I | B90: Product 1 | C90: Colorado | D90: Noelani | E90: 2014-06-01 | F90: 7.9 | G90: 6.9 | H90: 0.3 | I90: 16 | J90: 2.025316456 | K90: 544 | L90: 68.86075949 | M90: 365 | N90: 30 | O90: 35 | P90: 33 | Q90: 14 | R90: 477 | S90: 0.1362683438 | T90: 0.8734177215
A91: Team I | B91: Product 2 | C91: Connecticut | D91: Portia | E91: 2014-06-01 | F91: 7.6 | G91: 6.6 | H91: 0.8 | I91: 16 | J91: 2.105263158 | K91: 544 | L91: 71.57894737 | M91: 396 | N91: 25 | O91: 39 | P91: 37 | Q91: 11 | R91: 508 | S91: 0.125984252 | T91: 0.8684210526
A92: Team A | B92: Product 1 | C92: Alabama | D92: Flavia | E92: 2014-06-01 | F92: 7.6 | G92: 6.6 | H92: 0.5 | I92: 15 | J92: 1.973684211 | K92: 510 | L92: 67.10526316 | M92: 302 | N92: 24 | O92: 37 | P92: 33 | Q92: 12 | R92: 408 | S92: 0.1495098039 | T92: 0.8684210526
A93: Team B | B93: Product 2 | C93: Hawaii | D93: Sierra | E93: 2014-06-01 | F93: 8.3 | G93: 7.3 | H93: 0.6 | I93: 15 | J93: 1.807228916 | K93: 510 | L93: 61.44578313 | M93: 302 | N93: 21 | O93: 34 | P93: 36 | Q93: 13 | R93: 406 | S93: 0.1354679803 | T93: 0.8795180723
A94: Team C | B94: Product 1 | C94: Colorado | D94: Illana | E94: 2014-06-01 | F94: 7.6 | G94: 6.6 | H94: 0.3 | I94: 15 | J94: 1.973684211 | K94: 510 | L94: 67.10526316 | M94: 356 | N94: 21 | O94: 35 | P94: 35 | Q94: 10 | R94: 457 | S94: 0.1225382932 | T94: 0.8684210526
A95: Team C | B95: Product 2 | C95: Hawaii | D95: April | E95: 2014-06-01 | F95: 7.5 | G95: 6.5 | H95: 0.6 | I95: 15 | J95: 2 | K95: 510 | L95: 68 | M95: 324 | N95: 25 | O95: 32 | P95: 31 | Q95: 14 | R95: 426 | S95: 0.1338028169 | T95: 0.8666666667
A96: Team D | B96: Product 1 | C96: Colorado | D96: Ariel | E96: 2014-06-01 | F96: 7.3 | G96: 6.3 | H96: 0.3 | I96: 15 | J96: 2.054794521 | K96: 510 | L96: 69.8630137 | M96: 301 | N96: 27 | O96: 39 | P96: 39 | Q96: 11 | R96: 417 | S96: 0.1582733813 | T96: 0.8630136986
A97: Team F | B97: Product 1 | C97: Florida | D97: Britanney | E97: 2014-06-01 | F97: 7.9 | G97: 6.9 | H97: 0.2 | I97: 15 | J97: 1.898734177 | K97: 510 | L97: 64.55696203 | M97: 357 | N97: 27 | O97: 30 | P97: 31 | Q97: 12 | R97: 457 | S97: 0.124726477 | T97: 0.8734177215
A98: Team G | B98: Product 2 | C98: Hawaii | D98: Medge | E98: 2014-06-01 | F98: 7.9 | G98: 6.9 | H98: 0.6 | I98: 15 | J98: 1.898734177 | K98: 510 | L98: 64.55696203 | M98: 392 | N98: 27 | O98: 30 | P98: 30 | Q98: 12 | R98: 491 | S98: 0.116089613 | T98: 0.8734177215
A99: Team H | B99: Product 1 | C99: Alabama | D99: Serena | E99: 2014-06-01 | F99: 7.3 | G99: 6.3 | H99: 0.5 | I99: 15 | J99: 2.054794521 | K99: 510 | L99: 69.8630137 | M99: 359 | N99: 25 | O99: 37 | P99: 34 | Q99: 10 | R99: =SUM(M99:Q99) -> 465 | S99: =SUM(N99:O99)/R99 -> 0.1333333333 | T99: 0.8630136986
A100: Team I | B100: Product 2 | C100: Hawaii | D100: Calista | E100: 2014-06-01 | F100: 8 | G100: 7 | H100: 0.6 | I100: 15 | J100: 1.875 | K100: 510 | L100: 63.75 | M100: 327 | N100: 27 | O100: 33 | P100: 37 | Q100: 13 | R100: 437 | S100: 0.1372997712 | T100: 0.875
A101: Team J | B101: Product 1 | C101: Florida | D101: Jeremy | E101: 2014-06-01 | F101: 7.6 | G101: 6.6 | H101: 0.2 | I101: 15 | J101: 1.973684211 | K101: 510 | L101: 67.10526316 | M101: 384 | N101: 21 | O101: 37 | P101: 39 | Q101: 11 | R101: 492 | S101: 0.1178861789 | T101: 0.8684210526
A102: Team J | B102: Product 2 | C102: Connecticut | D102: Rafael | E102: 2014-06-01 | F102: 7.3 | G102: 6.3 | H102: 0.8 | I102: 15 | J102: 2.054794521 | K102: 510 | L102: 69.8630137 | M102: 316 | N102: 29 | O102: 35 | P102: 33 | Q102: 10 | R102: 423 | S102: 0.1513002364 | T102: 0.8630136986
A103: Team J | B103: Product 1 | C103: Florida | D103: Hoyt | E103: 2014-06-01 | F103: 7.6 | G103: 6.6 | H103: 0.2 | I103: 15 | J103: 1.973684211 | K103: 510 | L103: 67.10526316 | M103: 384 | N103: 21 | O103: 37 | P103: 39 | Q103: 11 | R103: =SUM(M103:Q103) -> 492 | S103: =SUM(N103:O103)/R103 -> 0.1178861789 | T103: 0.8684210526

Sheet Dashboard
A1: =CONCATENATE("Daily Team Performance Dashboard for ",TEXT(MAX('Team Performance'!$E:$E),"Mmmm dd, yyyy")) -> Daily Team Performance Dashboard for June 01, 2014
A3: Select Category | D3: Select Segment
H20: Revenue per Capita by Region (in Thousands)
H21: =Reference!R1 -> Region | I21: =Reference!S1 -> Revenue | J21: =Reference!T1 -> Population | K21: =Reference!U1 -> Rev. Per Capita
H22: =Reference!R2 -> Alabama | I22: =Reference!S2 -> 11934 | J22: =Reference!T2 -> 4779736 | K22: =Reference!U2 -> 2.496790618
B23: Top Team Members by Revenue | H23: =Reference!R3 -> California | I23: =Reference!S3 -> 11594 | J23: =Reference!T3 -> 37253956 | K23: =Reference!U3 -> 0.3112152707
B24: Name | D24: Revenue | H24: =Reference!R4 -> Colorado | I24: =Reference!S4 -> 11186 | J24: =Reference!T4 -> 5029196 | K24: =Reference!U4 -> 2.224212379
B25: =Reference!M6 -> Farrah | D25: =Reference!N6 -> 816 | H25: =Reference!R5 -> Connecticut | I25: =Reference!S5 -> 11696 | J25: =Reference!T5 -> 3574097 | K25: =Reference!U5 -> 3.272434967
B26: =Reference!M7 -> Tashya | D26: =Reference!N7 -> 816 | H26: =Reference!R6 -> Florida | I26: =Reference!S6 -> 11220 | J26: =Reference!T6 -> 18801310 | K26: =Reference!U6 -> 0.5967669274
B27: =Reference!M8 -> Libby | D27: =Reference!N8 -> 782 | H27: =Reference!R7 -> Hawaii | I27: =Reference!S7 -> 10880 | J27: =Reference!T7 -> 1360301 | K27: =Reference!U7 -> 7.998229804

Sheet Reference
A1: Segment | C1: Team | D1: Product | E1: Region | G1: Category | H1: Segment | J1: Segment Stats | M1: Team | N1: Team A | P1: =OFFSET('Team Performance'!$D$1,MATCH(MAX('Team Performance'!$S:$S),'Team Performance'!$S:$S,0)-1,0) -> Xerxes | R1: Region | S1: Revenue | T1: Population | U1: Rev. Per Capita
A2: Team | C2: Team A | D2: Product 1 | E2: Alabama | G2: 1 | H2: Team A | J2: Sales per Hour | K2: =IFERROR(SUMIF(OFFSET('Team Performance'!A1,0,Reference!G2-1,104,1),H2,'Team Performance'!I:I)/SUMIF(OFFSET('Team Performance'!A1,0,Reference!G2-1,104,1),H2,'Team Performance'!F:F),"") -> 2.667542707 | M2: Product | N2: (All) | R2: Alabama | S2: =SUMIF('Team Performance'!C:C,Reference!R2,'Team Performance'!K:K) -> 11934 | T2: =SUMIF(Population!A:A,Reference!R2,Population!B:B) -> 4779736 | U2: =(1000*S2/T2) -> 2.496790618
A3: Product | C3: Team B | D3: Product 2 | E3: California | J3: Revenue per Hour | K3: =IFERROR(SUMIF(OFFSET('Team Performance'!A1,0,Reference!G2-1,104,1),H2,'Team Performance'!K:K)/SUMIF(OFFSET('Team Performance'!A1,0,Reference!G2-1,104,1),H2,'Team Performance'!F:F),"") -> 90.69645204 | M3: Region | N3: (All) | R3: California | S3: =SUMIF('Team Performance'!C:C,Reference!R3,'Team Performance'!K:K) -> 11594 | T3: =SUMIF(Population!A:A,Reference!R3,Population!B:B) -> 37253956 | U3: =(1000*S3/T3) -> 0.3112152707
A4: Region | C4: Team C | E4: Colorado | J4: Average CSAT% | K4: =IFERROR(AVERAGEIF(OFFSET('Team Performance'!A1,0,Reference!G2-1,104,1),H2,'Team Performance'!S:S),"") -> 0.1341936268 | R4: Colorado | S4: =SUMIF('Team Performance'!C:C,Reference!R4,'Team Performance'!K:K) -> 11186 | T4: =SUMIF(Population!A:A,Reference!R4,Population!B:B) -> 5029196 | U4: 2.224212379
C5: Team D | E5: Connecticut | J5: Sales | K5: =SUMIF(OFFSET('Team Performance'!A1,0,Reference!G2-1,104,1),H2,'Team Performance'!I:I) -> 203 | M5: Row Labels | N5: Sum of Revenue | R5: Connecticut | S5: =SUMIF('Team Performance'!C:C,Reference!R5,'Team Performance'!K:K) -> 11696 | T5: =SUMIF(Population!A:A,Reference!R5,Population!B:B) -> 3574097 | U5: 3.272434967
C6: Team E | E6: Florida | M6: Farrah | N6: 816 | R6: Florida | S6: =SUMIF('Team Performance'!C:C,Reference!R6,'Team Performance'!K:K) -> 11220 | T6: =SUMIF(Population!A:A,Reference!R6,Population!B:B) -> 18801310 | U6: 0.5967669274
C7: Team F | E7: Hawaii | M7: Tashya | N7: 816 | R7: Hawaii | S7: =SUMIF('Team Performance'!C:C,Reference!R7,'Team Performance'!K:K) -> 10880 | T7: =SUMIF(Population!A:A,Reference!R7,Population!B:B) -> 1360301 | U7: 7.998229804
C8: Team G | M8: Libby | N8: 782
C9: Team H | M9: Grand Total | N9: 2414
C10: Team I
C11: Team J

Sheet Chart Source
A1: Sale Date | B1: (All) | D1: Sale Date | E1: (All) | G1: Sale Date | H1: (All) | J1: Sale Date | K1: (All)
A3: Row Labels | B3: Avg CSAT% | D3: Row Labels | E3: Avg CSAT% | G3: Row Labels | H3: Avg CSAT% | J3: Row Labels | K3: Revenue by Team
A4: Team A | B4: 0.1341936268 | D4: Product 1 | E4: 0.1331801819 | G4: Alabama | H4: 0.1317818673 | J4: Team A | K4: 6902
A5: Team B | B5: 0.131287384 | D5: Product 2 | E5: 0.1291014873 | G5: California | H5: 0.1312992988 | J5: Team B | K5: 7208
A6: Team C | B6: 0.1272679542 | D6: Grand Total | E6: 0.1311408346 | G6: Colorado | H6: 0.1381124065 | J6: Team C | K6: 6460
A7: Team D | B7: 0.1315196399 | G7: Connecticut | H7: 0.1279956533 | J7: Team D | K7: 6358
A8: Team E | B8: 0.127809797 | G8: Florida | H8: 0.1296462718 | J8: Team E | K8: 7310
A9: Team F | B9: 0.1321179891 | G9: Hawaii | H9: 0.1280095096 | J9: Team F | K9: 6698
A10: Team G | B10: 0.1260382639 | G10: Grand Total | H10: 0.1311408346 | J10: Team G | K10: 6834
A11: Team H | B11: 0.1335618033 | J11: Team H | K11: 6630
A12: Team I | B12: 0.1338151768 | J12: Team I | K12: 7106
A13: Team J | B13: 0.1333121454 | J13: Team J | K13: 7004
A14: Grand Total | B14: 0.1311408346 | J14: Grand Total | K14: 68510
A16: =IF(ISBLANK(A3),"",A3) -> Row Labels | B16: =IF(ISBLANK(B3),"",B3) -> Avg CSAT% | D16: Row Labels | E16: Avg CSAT% | G16: Row Labels | H16: Avg CSAT% | J16: Row Labels | K16: Revenue by Team
A17: =IF(ISBLANK(A4),"",A4) -> Team A | B17: 0.1341936268 | D17: Product 1 | E17: 0.1331801819 | G17: Alabama | H17: 0.1317818673 | J17: Team A | K17: 6902
A18: =IF(ISBLANK(A5),"",A5) -> Team B | B18: 0.131287384 | D18: Product 2 | E18: 0.1291014873 | G18: California | H18: 0.1312992988 | J18: Team B | K18: 7208
A19: =IF(ISBLANK(A6),"",A6) -> Team C | B19: 0.1272679542 | D19: Grand Total | E19: 0.1311408346 | G19: Colorado | H19: 0.1381124065 | J19: Team C | K19: 6460
A20: =IF(ISBLANK(A7),"",A7) -> Team D | B20: 0.1315196399 | G20: Connecticut | H20: 0.1279956533 | J20: Team D | K20: 6358
A21: =IF(ISBLANK(A8),"",A8) -> Team E | B21: 0.127809797 | G21: Florida | H21: 0.1296462718 | J21: Team E | K21: 7310
A22: =IF(ISBLANK(A9),"",A9) -> Team F | B22: 0.1321179891 | G22: Hawaii | H22: 0.1280095096 | J22: Team F | K22: 6698
A23: =IF(ISBLANK(A10),"",A10) -> Team G | B23: 0.1260382639 | G23: Grand Total | H23: 0.1311408346 | J23: Team G | K23: 6834
A24: =IF(ISBLANK(A11),"",A11) -> Team H | B24: 0.1335618033 | J24: Team H | K24: 6630
A25: =IF(ISBLANK(A12),"",A12) -> Team I | B25: 0.1338151768 | J25: Team I | K25: 7106
A26: =IF(ISBLANK(A13),"",A13) -> Team J | B26: 0.1333121454 | J26: Team J | K26: 7004
A27: =IF(ISBLANK(A14),"",A14) -> Grand Total | B27: 0.1311408346 | J27: Grand Total | K27: 68510
A28: =IF(ISBLANK(A15),"",A15) -> 

Sheet Population
A1: State or territory | B1: Census population
A2: California | B2: 37253956
A3: Texas | B3: 25145561
A4: New York | B4: 19378102
A5: Florida | B5: 18801310
A6: Illinois | B6: 12830632
A7: Pennsylvania | B7: 12702379
A8: Ohio | B8: 11536504
A9: Georgia | B9: 9687653
A10: Michigan | B10: 9883640
A11: North Carolina | B11: 9535483
A12: New Jersey | B12: 8791894
A13: Virginia | B13: 8001024
A14: Washington | B14: 6724540
A15: Massachusetts | B15: 6547629
A16: Arizona | B16: 6392017
A17: Indiana | B17: 6483802
A18: Tennessee | B18: 6346105
A19: Missouri | B19: 5988927
A20: Maryland | B20: 5773552
A21: Wisconsin | B21: 5686986
A22: Minnesota | B22: 5303925
A23: Colorado | B23: 5029196
A24: Alabama | B24: 4779736
A25: South Carolina | B25: 4625364
A26: Louisiana | B26: 4533372
A27: Kentucky | B27: 4339367
A28: Oregon | B28: 3831074
A29: Oklahoma | B29: 3751351
A30: Puerto Rico | B30: 3725789
A31: Connecticut | B31: 3574097
A32: Iowa | B32: 3046355
A33: Mississippi | B33: 2967297
A34: Arkansas | B34: 2915918
A35: Utah | B35: 2763885
A36: Kansas | B36: 2853118
A37: Nevada | B37: 2700551
A38: New Mexico | B38: 2059179
A39: Nebraska | B39: 1826341
A40: West Virginia | B40: 1852994
A41: Idaho | B41: 1567582
A42: Hawaii | B42: 1360301
A43: Maine | B43: 1328361
A44: New Hampshire | B44: 1316470
A45: Rhode Island | B45: 1052567
A46: Montana | B46: 989415
A47: Delaware | B47: 897934
A48: South Dakota | B48: 814180
A49: Alaska | B49: 710231
A50: North Dakota | B50: 672591
A51: District of Columbia | B51: 601723
A52: Vermont | B52: 625741
A53: Wyoming | B53: 563626
